[Event "Early-Titled-Tuesday-Blitz-February-13-2024"]
[Site "Chess.com"]
[Date "2024.02.13"]
[Round "10"]
[White "Barmen_EV"]
[Black "Attacks_Hurricane"]
[Result "1-0"]
[WhiteElo "2521"]
[BlackElo "2349"]
[TimeControl "180+1"]
[EndTime "9:59:16 PST"]
[Termination "Barmen_EV won by checkmate"]

1. e4 {[%clk 0:03:00.1]} 1... c5 {[%clk 0:02:59.7]} 2. c3 {[%clk 0:02:56]} 2...
d5 {[%clk 0:02:58.3]} 3. exd5 {[%clk 0:02:56.2]} 3... Qxd5 {[%clk 0:02:59.2]} 4.
d4 {[%clk 0:02:57.1]} 4... Nc6 {[%clk 0:02:57.9]} 5. Nf3 {[%clk 0:02:57.4]} 5...
Bf5 {[%clk 0:02:57.9]} 6. Be3 {[%clk 0:02:54.3]} 6... cxd4 {[%clk 0:02:38.3]} 7.
cxd4 {[%clk 0:02:55.2]} 7... e6 {[%clk 0:02:37.8]} 8. Nc3 {[%clk 0:02:54.8]}
8... Bb4 {[%clk 0:02:37.8]} 9. Be2 {[%clk 0:02:50.7]} 9... Qa5 {[%clk
0:02:36.3]} 10. O-O {[%clk 0:02:50.1]} 10... Nge7 {[%clk 0:02:24.3]} 11. a3
{[%clk 0:02:45]} 11... Bxc3 {[%clk 0:02:23]} 12. bxc3 {[%clk 0:02:45.9]} 12...
Qxc3 {[%clk 0:02:13.5]} 13. Qa4 {[%clk 0:02:22.7]} 13... Qa5 {[%clk 0:02:11.3]}
14. Qb3 {[%clk 0:02:23.2]} 14... O-O {[%clk 0:02:01.1]} 15. Rac1 {[%clk
0:02:13.5]} 15... Rab8 {[%clk 0:01:49.8]} 16. Rc5 {[%clk 0:02:11.6]} 16... Qd8
{[%clk 0:01:49.4]} 17. Rd1 {[%clk 0:02:09]} 17... b6 {[%clk 0:01:35.9]} 18. Rcc1
{[%clk 0:02:07.3]} 18... Na5 {[%clk 0:01:32.7]} 19. Qa4 {[%clk 0:02:04]} 19...
Be4 {[%clk 0:01:17.6]} 20. Ne5 {[%clk 0:02:02]} 20... f6 {[%clk 0:01:15]} 21. d5
{[%clk 0:01:45.3]} 21... Bxd5 {[%clk 0:01:08.4]} 22. Nd7 {[%clk 0:01:39.2]}
22... Bc6 {[%clk 0:00:26.6]} 23. Rxc6 {[%clk 0:01:37.9]} 23... Naxc6 {[%clk
0:00:26]} 24. Nxf6+ {[%clk 0:01:33.7]} 24... gxf6 {[%clk 0:00:24.1]} 25. Rxd8
{[%clk 0:01:34.6]} 25... Rfxd8 {[%clk 0:00:24.7]} 26. Qg4+ {[%clk 0:01:33.1]}
26... Kh8 {[%clk 0:00:19.1]} 27. Qxe6 {[%clk 0:01:33.5]} 27... Nd5 {[%clk
0:00:18.6]} 28. Qxc6 {[%clk 0:01:23.1]} 28... Rbc8 {[%clk 0:00:18.7]} 29. Qe6
{[%clk 0:01:21.9]} 29... Nxe3 {[%clk 0:00:16.6]} 30. Qxf6+ {[%clk 0:01:21.1]}
30... Kg8 {[%clk 0:00:16.6]} 31. Qe6+ {[%clk 0:01:13.5]} 31... Kg7 {[%clk
0:00:16.5]} 32. Qxe3 {[%clk 0:01:14.2]} 32... Re8 {[%clk 0:00:16.4]} 33. Qg5+
{[%clk 0:01:14.2]} 33... Kf8 {[%clk 0:00:16.5]} 34. Qf6+ {[%clk 0:01:13.3]}
34... Kg8 {[%clk 0:00:15.8]} 35. Qg5+ {[%clk 0:00:59.3]} 35... Kh8 {[%clk
0:00:10.3]} 36. Kf1 {[%clk 0:00:42.7]} 36... Rc5 {[%clk 0:00:10]} 37. Qf6+
{[%clk 0:00:41.4]} 37... Kg8 {[%clk 0:00:10.6]} 38. g3 {[%clk 0:00:30.8]} 38...
Rc1+ {[%clk 0:00:10.4]} 39. Kg2 {[%clk 0:00:31.4]} 39... Rc5 {[%clk 0:00:07.8]}
40. Bd1 {[%clk 0:00:26.6]} 40... Rf8 {[%clk 0:00:08]} 41. Bb3+ {[%clk
0:00:26.7]} 41... Rd5 {[%clk 0:00:05]} 42. Bxd5+ {[%clk 0:00:27]} 42... Rf7
{[%clk 0:00:05.9]} 43. Qxf7+ {[%clk 0:00:27.3]} 43... Kh8 {[%clk 0:00:06.8]} 44.
Qf8# {[%clk 0:00:28.2]} 1-0

[Event "Early-Titled-Tuesday-Blitz-February-13-2024"]
[Site "Chess.com"]
[Date "2024.02.13"]
[Round "10"]
[White "kpio91"]
[Black "vi_pranav"]
[Result "1/2-1/2"]
[WhiteElo "2902"]
[BlackElo "3035"]
[TimeControl "180+1"]
[EndTime "9:59:18 PST"]
[Termination "Game drawn by repetition"]

1. e4 {[%clk 0:03:00.9]} 1... e5 {[%clk 0:02:59.5]} 2. Bc4 {[%clk 0:02:56.5]}
2... Nc6 {[%clk 0:02:58.6]} 3. d3 {[%clk 0:02:54.5]} 3... Nf6 {[%clk 0:02:58.5]}
4. Nc3 {[%clk 0:02:52.7]} 4... Bc5 {[%clk 0:02:58]} 5. h3 {[%clk 0:02:50.9]}
5... d6 {[%clk 0:02:55.7]} 6. Be3 {[%clk 0:02:50.9]} 6... Bb6 {[%clk 0:02:55]}
7. Nge2 {[%clk 0:02:46.8]} 7... Be6 {[%clk 0:02:53.1]} 8. Bb3 {[%clk 0:02:46.6]}
8... O-O {[%clk 0:02:51.5]} 9. Qd2 {[%clk 0:02:45.9]} 9... h6 {[%clk 0:02:35.3]}
10. O-O {[%clk 0:02:38.3]} 10... Bxe3 {[%clk 0:02:11.1]} 11. fxe3 {[%clk
0:02:24.8]} 11... Nh7 {[%clk 0:01:59.8]} 12. Ng3 {[%clk 0:02:23.2]} 12... Na5
{[%clk 0:01:57.6]} 13. Rf2 {[%clk 0:02:08.8]} 13... Nxb3 {[%clk 0:01:53.4]} 14.
axb3 {[%clk 0:02:08]} 14... g6 {[%clk 0:01:53.3]} 15. d4 {[%clk 0:01:44.7]}
15... Qh4 {[%clk 0:01:49.5]} 16. Nce2 {[%clk 0:00:58.2]} 16... Ng5 {[%clk
0:01:45]} 17. dxe5 {[%clk 0:00:49]} 17... dxe5 {[%clk 0:01:43.4]} 18. Qc3 {[%clk
0:00:49.6]} 18... Rfe8 {[%clk 0:00:57.1]} 19. Qxe5 {[%clk 0:00:38.5]} 19... Bxh3
{[%clk 0:00:55.6]} 20. Qf4 {[%clk 0:00:38.2]} 20... Bg4 {[%clk 0:00:54.8]} 21.
Nd4 {[%clk 0:00:34.4]} 21... f5 {[%clk 0:00:14.3]} 22. exf5 {[%clk 0:00:27.7]}
22... c5 {[%clk 0:00:10.9]} 23. Nf3 {[%clk 0:00:27.2]} 23... Nxf3+ {[%clk
0:00:05.7]} 24. gxf3 {[%clk 0:00:27.1]} 24... h5 {[%clk 0:00:05.7]} 25. fxg4
{[%clk 0:00:25.6]} 25... g5 {[%clk 0:00:06]} 26. Qd6 {[%clk 0:00:24.9]} 26...
Rxe3 {[%clk 0:00:04.9]} 27. Qg6+ {[%clk 0:00:21]} 27... Kf8 {[%clk 0:00:05.1]}
28. Nxh5 {[%clk 0:00:19.5]} 28... Qxg4+ {[%clk 0:00:01.2]} 29. Rg2 {[%clk
0:00:19.7]} 29... Qd4 {[%clk 0:00:02.1]} 30. Qh6+ {[%clk 0:00:17.3]} 30... Kf7
{[%clk 0:00:02.2]} 31. Qh7+ {[%clk 0:00:13.7]} 31... Kf8 {[%clk 0:00:02.3]} 32.
Qh6+ {[%clk 0:00:13.9]} 32... Kf7 {[%clk 0:00:02.4]} 33. Qg6+ {[%clk 0:00:11.6]}
33... Kf8 {[%clk 0:00:02.6]} 34. Kh2 {[%clk 0:00:11.1]} 34... Qh4+ {[%clk
0:00:02.8]} 35. Kg1 {[%clk 0:00:10.5]} 35... Qd4 {[%clk 0:00:03.4]} 1/2-1/2

[Event "Early-Titled-Tuesday-Blitz-February-13-2024"]
[Site "Chess.com"]
[Date "2024.02.13"]
[Round "10"]
[White "Igor_Lysyj"]
[Black "kingofthenil"]
[Result "0-1"]
[WhiteElo "2848"]
[BlackElo "2723"]
[TimeControl "180+1"]
[EndTime "9:59:20 PST"]
[Termination "kingofthenil won by resignation"]

1. d4 {[%clk 0:02:59.2]} 1... d5 {[%clk 0:02:52.4]} 2. c4 {[%clk 0:02:58.9]}
2... e6 {[%clk 0:02:50.6]} 3. Nf3 {[%clk 0:02:58.3]} 3... a6 {[%clk 0:02:50.4]}
4. cxd5 {[%clk 0:02:56.9]} 4... exd5 {[%clk 0:02:51.3]} 5. Nc3 {[%clk
0:02:57.2]} 5... Nf6 {[%clk 0:02:51.4]} 6. Bg5 {[%clk 0:02:56.7]} 6... Be6
{[%clk 0:02:52.1]} 7. e3 {[%clk 0:02:56.5]} 7... Nbd7 {[%clk 0:02:50.7]} 8. Bd3
{[%clk 0:02:55.2]} 8... Bd6 {[%clk 0:02:51.2]} 9. O-O {[%clk 0:02:49.4]} 9... c6
{[%clk 0:02:51.4]} 10. Bf4 {[%clk 0:02:49]} 10... Qc7 {[%clk 0:02:49.9]} 11. Qd2
{[%clk 0:02:49.6]} 11... Bg4 {[%clk 0:02:41]} 12. Nh4 {[%clk 0:02:46.3]} 12...
O-O {[%clk 0:02:07.9]} 13. Bxd6 {[%clk 0:02:44.7]} 13... Qxd6 {[%clk 0:02:08.8]}
14. f4 {[%clk 0:02:45.1]} 14... Nb6 {[%clk 0:02:02.3]} 15. f5 {[%clk 0:02:43.3]}
15... g5 {[%clk 0:01:54.6]} 16. Nf3 {[%clk 0:02:38.7]} 16... Bxf3 {[%clk
0:01:54]} 17. Rxf3 {[%clk 0:02:38.7]} 17... Rae8 {[%clk 0:01:49.5]} 18. Rg3
{[%clk 0:02:35.2]} 18... h6 {[%clk 0:01:46.1]} 19. Qf2 {[%clk 0:02:33.9]} 19...
Kh8 {[%clk 0:01:20.5]} 20. Re1 {[%clk 0:01:32.2]} 20... Re7 {[%clk 0:01:05.2]}
21. h4 {[%clk 0:01:22.8]} 21... g4 {[%clk 0:01:01.2]} 22. e4 {[%clk 0:01:22.5]}
22... dxe4 {[%clk 0:00:58.1]} 23. Nxe4 {[%clk 0:01:21.9]} 23... Nxe4 {[%clk
0:00:53.5]} 24. Rxe4 {[%clk 0:01:18]} 24... Rxe4 {[%clk 0:00:49]} 25. Bxe4
{[%clk 0:01:18.4]} 25... Rd8 {[%clk 0:00:27.6]} 26. Rd3 {[%clk 0:01:16.9]} 26...
Qf6 {[%clk 0:00:25.8]} 27. g3 {[%clk 0:01:04.2]} 27... Nc4 {[%clk 0:00:24.6]}
28. Rd1 {[%clk 0:00:56.4]} 28... Re8 {[%clk 0:00:19.5]} 29. Qf4 {[%clk
0:00:51.1]} 29... Nxb2 {[%clk 0:00:12.3]} 30. Rb1 {[%clk 0:00:50.7]} 30... Qxd4+
{[%clk 0:00:11.9]} 31. Kh2 {[%clk 0:00:50]} 31... Rxe4 {[%clk 0:00:07.7]} 32.
Qxh6+ {[%clk 0:00:47.6]} 32... Kg8 {[%clk 0:00:08.3]} 33. Qg5+ {[%clk
0:00:47.8]} 33... Kf8 {[%clk 0:00:08.4]} 34. Qh6+ {[%clk 0:00:44.5]} 34... Ke8
{[%clk 0:00:08.8]} 35. Rg1 {[%clk 0:00:32.3]} 35... Re2+ {[%clk 0:00:08.5]} 36.
Rg2 {[%clk 0:00:33]} 36... Rxg2+ {[%clk 0:00:07.9]} 37. Kxg2 {[%clk 0:00:33.4]}
37... Nd3 {[%clk 0:00:07.1]} 38. Qd2 {[%clk 0:00:31.7]} 38... Qe4+ {[%clk
0:00:07.5]} 39. Kg1 {[%clk 0:00:30.8]} 39... Qe1+ {[%clk 0:00:06.6]} 40. Qxe1+
{[%clk 0:00:30.7]} 40... Nxe1 {[%clk 0:00:07.5]} 41. Kf2 {[%clk 0:00:31.4]}
41... Nf3 {[%clk 0:00:04.9]} 42. Ke3 {[%clk 0:00:31]} 42... c5 {[%clk
0:00:04.7]} 43. Kf4 {[%clk 0:00:31.3]} 43... c4 {[%clk 0:00:04.6]} 0-1

[Event "Early-Titled-Tuesday-Blitz-February-13-2024"]
[Site "Chess.com"]
[Date "2024.02.13"]
[Round "10"]
[White "Sanyura"]
[Black "Zohid6"]
[Result "0-1"]
[WhiteElo "2666"]
[BlackElo "2839"]
[TimeControl "180+1"]
[EndTime "9:59:21 PST"]
[Termination "Zohid6 won by resignation"]

1. Nf3 {[%clk 0:02:59.7]} 1... Nf6 {[%clk 0:02:55.8]} 2. g3 {[%clk 0:02:56.2]}
2... d5 {[%clk 0:02:56]} 3. Bg2 {[%clk 0:02:56.3]} 3... Bg4 {[%clk 0:02:56.5]}
4. O-O {[%clk 0:02:56.6]} 4... Nbd7 {[%clk 0:02:55.8]} 5. d3 {[%clk 0:02:56.8]}
5... e5 {[%clk 0:02:55.5]} 6. Nbd2 {[%clk 0:02:56.2]} 6... Bd6 {[%clk
0:02:53.7]} 7. e4 {[%clk 0:02:56.1]} 7... dxe4 {[%clk 0:02:53.8]} 8. dxe4 {[%clk
0:02:56.4]} 8... O-O {[%clk 0:02:54]} 9. h3 {[%clk 0:02:56.3]} 9... Bh5 {[%clk
0:02:54.1]} 10. Qe2 {[%clk 0:02:55.9]} 10... c6 {[%clk 0:02:53.8]} 11. Nc4
{[%clk 0:02:56.1]} 11... Qc7 {[%clk 0:02:54]} 12. Rd1 {[%clk 0:02:53.5]} 12...
Bc5 {[%clk 0:02:53.2]} 13. g4 {[%clk 0:02:52.6]} 13... Bg6 {[%clk 0:02:52.9]}
14. Nh4 {[%clk 0:02:52.5]} 14... b5 {[%clk 0:02:51.6]} 15. Nd2 {[%clk
0:02:48.3]} 15... a5 {[%clk 0:02:50.4]} 16. Nf1 {[%clk 0:02:45.1]} 16... Rfd8
{[%clk 0:02:48.5]} 17. Ng3 {[%clk 0:02:45.3]} 17... Nf8 {[%clk 0:02:48.8]} 18.
g5 {[%clk 0:02:20.2]} 18... N6d7 {[%clk 0:02:46.4]} 19. Nhf5 {[%clk 0:02:15.9]}
19... Ne6 {[%clk 0:02:46.1]} 20. h4 {[%clk 0:02:15.7]} 20... Nf4 {[%clk
0:02:46.5]} 21. Qg4 {[%clk 0:02:15]} 21... Qb6 {[%clk 0:02:14.4]} 22. Bxf4
{[%clk 0:01:32.4]} 22... Bxf2+ {[%clk 0:02:10.8]} 23. Kh2 {[%clk 0:01:32.4]}
23... exf4 {[%clk 0:02:10.1]} 24. Qxf4 {[%clk 0:01:32.7]} 24... Bxg3+ {[%clk
0:01:56.7]} 25. Kxg3 {[%clk 0:01:27.1]} 25... Qc5 {[%clk 0:01:54.4]} 26. c3
{[%clk 0:01:26.3]} 26... Ne5 {[%clk 0:01:53.5]} 27. Kh2 {[%clk 0:01:00.3]} 27...
Bh5 {[%clk 0:01:48.8]} 28. Rxd8+ {[%clk 0:00:52.8]} 28... Rxd8 {[%clk
0:01:49.7]} 29. Rf1 {[%clk 0:00:29.7]} 29... Rd3 {[%clk 0:01:45.5]} 30. Ng3
{[%clk 0:00:20.3]} 30... g6 {[%clk 0:01:26.6]} 31. b4 {[%clk 0:00:10.8]} 31...
Qxc3 {[%clk 0:01:21.9]} 32. bxa5 {[%clk 0:00:10.8]} 32... Ng4+ {[%clk
0:01:21.3]} 33. Kh3 {[%clk 0:00:10.9]} 33... Ne5 {[%clk 0:00:40.5]} 34. a6
{[%clk 0:00:09.9]} 34... Rd2 {[%clk 0:00:40.3]} 35. a7 {[%clk 0:00:08.7]} 35...
Rxa2 {[%clk 0:00:40.3]} 36. Rc1 {[%clk 0:00:03.2]} 36... Qd4 {[%clk 0:00:26.9]}
37. Nxh5 {[%clk 0:00:01.6]} 37... gxh5 {[%clk 0:00:26.2]} 38. g6 {[%clk
0:00:01.5]} 38... hxg6 {[%clk 0:00:26]} 39. Kh2 {[%clk 0:00:01.5]} 39... Rxa7
{[%clk 0:00:25]} 40. Rd1 {[%clk 0:00:01.3]} 0-1

[Event "Early-Titled-Tuesday-Blitz-February-13-2024"]
[Site "Chess.com"]
[Date "2024.02.13"]
[Round "10"]
[White "RamonManon0g"]
[Black "C_K_G"]
[Result "1-0"]
[WhiteElo "2365"]
[BlackElo "2118"]
[TimeControl "180+1"]
[EndTime "9:59:21 PST"]
[Termination "RamonManon0g won on time"]

1. e4 {[%clk 0:03:00.9]} 1... c5 {[%clk 0:02:59.7]} 2. Nf3 {[%clk 0:03:00.9]}
2... d6 {[%clk 0:03:00.1]} 3. Bb5+ {[%clk 0:03:01.4]} 3... Bd7 {[%clk
0:02:59.6]} 4. Bxd7+ {[%clk 0:03:01.4]} 4... Qxd7 {[%clk 0:02:59.5]} 5. c4
{[%clk 0:03:01.7]} 5... Nc6 {[%clk 0:02:58.2]} 6. Nc3 {[%clk 0:03:02.6]} 6... e6
{[%clk 0:02:57.2]} 7. d4 {[%clk 0:03:02.5]} 7... cxd4 {[%clk 0:02:57.1]} 8. Nxd4
{[%clk 0:03:03.4]} 8... Nf6 {[%clk 0:02:56.9]} 9. O-O {[%clk 0:03:02.6]} 9...
Be7 {[%clk 0:02:56.2]} 10. b3 {[%clk 0:02:59.9]} 10... O-O {[%clk 0:02:56.6]}
11. Bb2 {[%clk 0:02:59.8]} 11... Ne8 {[%clk 0:02:45.1]} 12. Nxc6 {[%clk
0:02:51.2]} 12... Qxc6 {[%clk 0:02:43.4]} 13. Re1 {[%clk 0:02:44.1]} 13... Bf6
{[%clk 0:02:42]} 14. Qd2 {[%clk 0:02:43.4]} 14... g6 {[%clk 0:02:35.8]} 15. Rad1
{[%clk 0:02:41]} 15... Bg7 {[%clk 0:02:34.1]} 16. Nb5 {[%clk 0:02:39.1]} 16...
Bxb2 {[%clk 0:02:25.7]} 17. Qxb2 {[%clk 0:02:39.4]} 17... a6 {[%clk 0:02:22.4]}
18. Nd4 {[%clk 0:02:38.7]} 18... Qc5 {[%clk 0:02:21.1]} 19. Nf3 {[%clk
0:02:34.4]} 19... f6 {[%clk 0:02:09.3]} 20. Qd2 {[%clk 0:02:12.9]} 20... Rd8
{[%clk 0:01:59.8]} 21. Nd4 {[%clk 0:02:03.3]} 21... Ng7 {[%clk 0:01:49]} 22. Qh6
{[%clk 0:02:03.4]} 22... Rfe8 {[%clk 0:01:43.6]} 23. h3 {[%clk 0:01:59.4]} 23...
Qh5 {[%clk 0:01:39.4]} 24. Qe3 {[%clk 0:01:57]} 24... Qa5 {[%clk 0:01:32.7]} 25.
Qf3 {[%clk 0:01:53.1]} 25... Qe5 {[%clk 0:01:18.9]} 26. Re2 {[%clk 0:01:51.7]}
26... Nh5 {[%clk 0:01:13]} 27. Red2 {[%clk 0:01:45.9]} 27... Nf4 {[%clk
0:01:09.2]} 28. Ne2 {[%clk 0:01:40]} 28... Nxe2+ {[%clk 0:01:03.9]} 29. Qxe2
{[%clk 0:01:40.9]} 29... Kg7 {[%clk 0:01:03.5]} 30. Qe3 {[%clk 0:01:37.9]} 30...
Rd7 {[%clk 0:01:02.9]} 31. c5 {[%clk 0:01:37]} 31... d5 {[%clk 0:01:00.3]} 32.
exd5 {[%clk 0:01:34.9]} 32... exd5 {[%clk 0:00:46.9]} 33. Rxd5 {[%clk
0:01:26.6]} 33... Rxd5 {[%clk 0:00:44]} 34. Rxd5 {[%clk 0:01:26.1]} 34... Qxe3
{[%clk 0:00:16.9]} 35. fxe3 {[%clk 0:01:25.9]} 35... Re7 {[%clk 0:00:17.3]} 36.
Kf2 {[%clk 0:01:24.1]} 36... Kf7 {[%clk 0:00:17.9]} 37. Rd6 {[%clk 0:01:23.3]}
37... Rc7 {[%clk 0:00:16.6]} 38. b4 {[%clk 0:01:22.6]} 38... Ke7 {[%clk
0:00:16.8]} 39. a4 {[%clk 0:01:19.9]} 39... Rd7 {[%clk 0:00:15.3]} 40. Rb6
{[%clk 0:01:14.4]} 40... h5 {[%clk 0:00:11.7]} 41. h4 {[%clk 0:01:09.6]} 41...
Kf7 {[%clk 0:00:11]} 42. Kf3 {[%clk 0:01:08.2]} 42... Rc7 {[%clk 0:00:10.7]} 43.
Ke4 {[%clk 0:01:06.7]} 43... Rd7 {[%clk 0:00:10]} 44. b5 {[%clk 0:01:04.8]}
44... axb5 {[%clk 0:00:09.8]} 45. axb5 {[%clk 0:01:05.7]} 45... Ke7 {[%clk
0:00:10]} 46. c6 {[%clk 0:01:00.3]} 46... bxc6 {[%clk 0:00:09.2]} 47. bxc6
{[%clk 0:01:01.2]} 47... Rc7 {[%clk 0:00:08.7]} 48. Kd5 {[%clk 0:01:01.5]} 48...
Kd8 {[%clk 0:00:06.1]} 49. Kd6 {[%clk 0:00:57.7]} 49... Rc8 {[%clk 0:00:03.1]}
50. Rb7 {[%clk 0:00:53.8]} 50... Ke8 {[%clk 0:00:03.2]} 51. c7 {[%clk
0:00:49.1]} 51... Kf7 {[%clk 0:00:02.2]} 52. Rb8 {[%clk 0:00:49]} 1-0

[Event "Early-Titled-Tuesday-Blitz-February-13-2024"]
[Site "Chess.com"]
[Date "2024.02.13"]
[Round "10"]
[White "agvania123"]
[Black "WiktoriaPOL"]
[Result "1/2-1/2"]
[WhiteElo "2368"]
[BlackElo "2283"]
[TimeControl "180+1"]
[EndTime "9:59:22 PST"]
[Termination "Game drawn by repetition"]

1. c4 {[%clk 0:02:59]} 1... Nf6 {[%clk 0:02:58.5]} 2. Nc3 {[%clk 0:02:59.3]}
2... g6 {[%clk 0:02:58.6]} 3. e4 {[%clk 0:02:57.7]} 3... d6 {[%clk 0:02:58.5]}
4. g3 {[%clk 0:02:58.1]} 4... Bg7 {[%clk 0:02:58.9]} 5. Bg2 {[%clk 0:02:58.7]}
5... O-O {[%clk 0:02:59.2]} 6. Nge2 {[%clk 0:02:59.3]} 6... c6 {[%clk
0:02:52.1]} 7. O-O {[%clk 0:02:59.2]} 7... Be6 {[%clk 0:02:47.1]} 8. d3 {[%clk
0:02:54.9]} 8... d5 {[%clk 0:02:46.2]} 9. cxd5 {[%clk 0:02:53.9]} 9... cxd5
{[%clk 0:02:46.3]} 10. e5 {[%clk 0:02:33.9]} 10... Ne8 {[%clk 0:02:44.2]} 11. d4
{[%clk 0:02:34.2]} 11... Nc7 {[%clk 0:02:43.2]} 12. Nf4 {[%clk 0:02:34.3]} 12...
Nc6 {[%clk 0:02:34.5]} 13. Nxe6 {[%clk 0:02:32.2]} 13... Nxe6 {[%clk 0:02:34.3]}
14. Be3 {[%clk 0:02:17]} 14... Nc7 {[%clk 0:02:33.1]} 15. f4 {[%clk 0:02:14.7]}
15... e6 {[%clk 0:02:33.2]} 16. Rc1 {[%clk 0:02:10.3]} 16... Rc8 {[%clk
0:02:32.6]} 17. g4 {[%clk 0:02:02.7]} 17... f6 {[%clk 0:02:32.4]} 18. g5 {[%clk
0:01:58.4]} 18... fxg5 {[%clk 0:02:28.2]} 19. fxg5 {[%clk 0:01:59.3]} 19... Ne7
{[%clk 0:02:27.1]} 20. Qd3 {[%clk 0:01:55]} 20... Nf5 {[%clk 0:02:24]} 21. Bd2
{[%clk 0:01:52.3]} 21... Qe7 {[%clk 0:02:12.2]} 22. Ne2 {[%clk 0:01:47.4]} 22...
a6 {[%clk 0:02:00.6]} 23. Bh3 {[%clk 0:01:45]} 23... Nh4 {[%clk 0:01:47.9]} 24.
Qg3 {[%clk 0:01:39.1]} 24... Nf5 {[%clk 0:01:44.1]} 25. Bxf5 {[%clk 0:01:39.2]}
25... exf5 {[%clk 0:01:40.3]} 26. h4 {[%clk 0:01:36.1]} 26... Ne6 {[%clk
0:01:38.3]} 27. Qd3 {[%clk 0:01:32.7]} 27... b5 {[%clk 0:01:30.3]} 28. Rxc8
{[%clk 0:01:28.9]} 28... Rxc8 {[%clk 0:01:30.6]} 29. Rc1 {[%clk 0:01:28.9]}
29... Rxc1+ {[%clk 0:01:28.5]} 30. Bxc1 {[%clk 0:01:20.8]} 30... Qa7 {[%clk
0:01:27.4]} 31. Be3 {[%clk 0:01:18.7]} 31... Qb6 {[%clk 0:01:00.7]} 32. Qc3
{[%clk 0:01:14.5]} 32... Kf7 {[%clk 0:00:59.7]} 33. Qc8 {[%clk 0:01:03.3]} 33...
Bxe5 {[%clk 0:00:41.1]} 34. Qd7+ {[%clk 0:01:02.4]} 34... Kf8 {[%clk 0:00:39.4]}
35. Qxd5 {[%clk 0:00:57.4]} 35... Bc7 {[%clk 0:00:25.6]} 36. h5 {[%clk
0:00:50.7]} 36... Bb8 {[%clk 0:00:15.7]} 37. Qd7 {[%clk 0:00:43.8]} 37... Qd6
{[%clk 0:00:11.4]} 38. Qxh7 {[%clk 0:00:31.7]} 38... Qh2+ {[%clk 0:00:10.6]} 39.
Kf1 {[%clk 0:00:32.4]} 39... Qh3+ {[%clk 0:00:09.5]} 40. Kf2 {[%clk 0:00:31.8]}
40... Qh4+ {[%clk 0:00:07.2]} 41. Kf1 {[%clk 0:00:29.3]} 41... Qh3+ {[%clk
0:00:05.8]} 42. Kf2 {[%clk 0:00:22.8]} 42... Qh4+ {[%clk 0:00:05.6]} 43. Kf1
{[%clk 0:00:19.1]} 43... Qh3+ {[%clk 0:00:05.8]} 1/2-1/2

[Event "Early-Titled-Tuesday-Blitz-February-13-2024"]
[Site "Chess.com"]
[Date "2024.02.13"]
[Round "10"]
[White "marsofsilva"]
[Black "GoValya"]
[Result "1-0"]
[WhiteElo "2141"]
[BlackElo "2251"]
[TimeControl "180+1"]
[EndTime "9:59:22 PST"]
[Termination "marsofsilva won by resignation"]

1. e4 {[%clk 0:03:00.9]} 1... e6 {[%clk 0:02:48.9]} 2. d4 {[%clk 0:02:57.4]}
2... d5 {[%clk 0:02:48.5]} 3. exd5 {[%clk 0:02:58.3]} 3... exd5 {[%clk
0:02:48.4]} 4. Nf3 {[%clk 0:02:58.7]} 4... Nf6 {[%clk 0:02:46.9]} 5. Bd3 {[%clk
0:02:55.7]} 5... c5 {[%clk 0:02:47]} 6. O-O {[%clk 0:02:53.8]} 6... c4 {[%clk
0:02:47.4]} 7. Re1+ {[%clk 0:02:53.8]} 7... Be7 {[%clk 0:02:47.6]} 8. Bf1 {[%clk
0:02:53.9]} 8... O-O {[%clk 0:02:47.7]} 9. b3 {[%clk 0:02:53.8]} 9... cxb3
{[%clk 0:02:48]} 10. axb3 {[%clk 0:02:52.9]} 10... Nc6 {[%clk 0:02:48]} 11. c4
{[%clk 0:02:41.1]} 11... Bg4 {[%clk 0:02:36.5]} 12. Be3 {[%clk 0:02:26.9]} 12...
Bb4 {[%clk 0:02:33.2]} 13. Nbd2 {[%clk 0:02:22.9]} 13... dxc4 {[%clk 0:02:13.1]}
14. bxc4 {[%clk 0:02:16.1]} 14... Bxf3 {[%clk 0:02:11.2]} 15. Qxf3 {[%clk
0:02:06.9]} 15... Bxd2 {[%clk 0:02:09]} 16. Bxd2 {[%clk 0:02:04.9]} 16... Nxd4
{[%clk 0:02:09.6]} 17. Qd3 {[%clk 0:01:33.6]} 17... Qd7 {[%clk 0:01:59.7]} 18.
Bb4 {[%clk 0:01:23.3]} 18... Rfe8 {[%clk 0:01:29.6]} 19. Red1 {[%clk 0:01:14.5]}
19... Red8 {[%clk 0:01:21.9]} 20. Bc3 {[%clk 0:00:50]} 20... a6 {[%clk
0:01:13.5]} 21. Qxd4 {[%clk 0:00:45.9]} 21... Qc7 {[%clk 0:01:11.7]} 22. Qh4
{[%clk 0:00:43.3]} 22... Rxd1 {[%clk 0:01:02.9]} 23. Rxd1 {[%clk 0:00:43.1]}
23... Ne8 {[%clk 0:00:57.7]} 24. Qg3 {[%clk 0:00:37.5]} 24... Qc6 {[%clk
0:00:48.1]} 25. Rd5 {[%clk 0:00:25.6]} 25... f6 {[%clk 0:00:40.4]} 26. Bd3
{[%clk 0:00:23.6]} 26... b5 {[%clk 0:00:36.1]} 27. Qh3 {[%clk 0:00:20.7]} 27...
h6 {[%clk 0:00:26.6]} 28. Qf5 {[%clk 0:00:18.9]} 28... bxc4 {[%clk 0:00:21]} 29.
Qh7+ {[%clk 0:00:13.2]} 29... Kf7 {[%clk 0:00:21.1]} 30. Bg6+ {[%clk 0:00:09]}
30... Ke7 {[%clk 0:00:12.7]} 31. Rd1 {[%clk 0:00:09]} 31... Nd6 {[%clk
0:00:11.4]} 32. Qxg7+ {[%clk 0:00:08.1]} 32... Ke6 {[%clk 0:00:10.7]} 33. Qxf6+
{[%clk 0:00:08.3]} 33... Kd7 {[%clk 0:00:09.9]} 34. Be5 {[%clk 0:00:05.8]} 34...
Kc7 {[%clk 0:00:06.3]} 35. Qxd6+ {[%clk 0:00:04.8]} 35... Qxd6 {[%clk
0:00:05.6]} 36. Bxd6+ {[%clk 0:00:05.6]} 36... Kc6 {[%clk 0:00:05.9]} 37. Be4+
{[%clk 0:00:04.6]} 1-0